bitfinex-derivatives/quotes_BTCF0:USTF0_20240817
["timestamp","ask_amount","ask_price","bid_price","bid_amount"]
[1723902737923,0.0932,59371.0,59370.0,0.065154]
[1723902738124,0.1632,59371.0,59370.0,0.002]
[1723902738627,0.1632,59371.0,59370.0,0.004]
[1723902738923,0.1632,59371.0,59370.0,0.002]
[1723902739126,0.1632,59371.0,59370.0,0.006]
[1723902740718,0.1632,59371.0,59370.0,0.004]
[1723902741234,0.1632,59371.0,59370.0,0.003]
[1723902741728,0.1632,59371.0,59370.0,0.001]
[1723902741919,0.1632,59371.0,59370.0,0.005]
[1723902742226,0.1632,59371.0,59370.0,0.0720381]
[1723902742419,0.1632,59371.0,59370.0,0.003]
[1723902747223,0.226353,59371.0,59370.0,0.003]
[1723902751729,0.376353,59371.0,59370.0,0.05325117]
[1723902751933,0.439506,59371.0,59370.0,0.05325117]
[1723902752131,0.439506,59371.0,59370.0,0.003]
[1723902752732,0.126312,59368.0,59367.0,0.00025277]
[1723902753034,0.063166,59359.0,59358.0,0.05025117]
[1723902753238,0.496366,59359.0,59358.0,0.05025117]
[1723902753420,0.496366,59359.0,59357.0,0.05025117]
[1723902753421,0.063167,59358.0,59357.0,0.05025117]
[1723902753630,0.526367,59358.0,59357.0,0.05025117]
[1723902754642,0.527367,59358.0,59357.0,0.05025117]
[1723902755034,0.47823106,59358.0,59357.0,0.05025117]
[1723902755229,0.01503106,59358.0,59355.0,0.5225981]
[1723902755428,0.0932,59360.0,59356.0,0.0670381]
[1723902755634,0.0932,59360.0,59359.0,0.0670381]
[1723902755635,0.1632,59360.0,59359.0,0.0670381]
[1723902755837,0.07,59360.0,59359.0,0.0670381]
[1723902756324,0.07,59360.0,59358.0,0.0670381]
[1723902757035,0.08365116,59360.0,59358.0,0.0670381]
[1723902757236,0.08365116,59360.0,59359.0,0.004]
[1723902757539,0.08465116,59360.0,59359.0,0.0710381]
[1723902757941,0.08465116,59360.0,59358.0,0.0670381]
[1723902758239,0.08465116,59360.0,59358.0,0.011]
[1723902758738,0.08465116,59360.0,59359.0,0.006]
[1723902759238,0.14781616,59360.0,59359.0,0.006]
[1723902759441,0.14781616,59360.0,59358.0,0.009]
[1723902759442,0.14681616,59360.0,59358.0,0.009]
[1723902760233,0.14681616,59360.0,59358.0,0.005]
[1723902760440,0.14681616,59360.0,59359.0,0.004]
[1723902761132,0.14681616,59360.0,59358.0,0.0750381]
[1723902761638,0.14681616,59360.0,59359.0,0.0670381]
[1723902761831,0.14681616,59360.0,59358.0,0.0750381]
[1723902762034,0.14681616,59360.0,59359.0,0.002]
[1723902762946,0.14681616,59360.0,59359.0,0.007]
[1723902763129,0.31681616,59360.0,59359.0,0.007]
[1723902763329,0.31681616,59360.0,59359.0,0.005]
[1723902763737,0.31681616,59360.0,59359.0,0.003]
[1723902763934,0.31681616,59360.0,59358.0,0.0700381]
[1723902764241,0.31681616,59360.0,59359.0,0.002]
[1723902764437,0.31681616,59360.0,59359.0,0.05228192]
[1723902764644,0.31681616,59360.0,59359.0,0.05428192]
[1723902765340,0.31681616,59360.0,59359.0,0.004]
[1723902765544,0.31681616,59360.0,59359.0,0.002]
[1723902765749,0.31681616,59360.0,59359.0,0.005]
[1723902766239,0.31681616,59360.0,59359.0,0.004]
[1723902766442,0.31681616,59360.0,59359.0,0.003]
[1723902766833,0.67761616,59360.0,59359.0,0.003]
[1723902767028,0.74078116,59360.0,59359.0,0.003]
[1723902770636,0.67761616,59360.0,59359.0,0.003]
[1723902770832,0.67761616,59360.0,59359.0,0.05328192]
[1723902771242,0.67761616,59360.0,59359.0,0.003]
[1723902773940,0.31681616,59360.0,59359.0,0.003]
[1723902777445,0.31681616,59360.0,59359.0,0.0700381]
[1723902779448,0.31681616,59360.0,59359.0,0.003]
[1723902782639,0.37998116,59360.0,59359.0,0.003]
[1723902782837,0.50038116,59360.0,59359.0,0.003]
[1723902783046,0.43721616,59360.0,59359.0,0.003]
[1723902787855,0.53041616,59360.0,59359.0,0.003]
[1723902788743,0.31681616,59360.0,59359.0,0.003]
[1723902788948,0.41001616,59360.0,59359.0,0.003]
[1723902795053,0.41001616,59360.0,59359.0,0.04007424]
[1723902795254,0.41001616,59360.0,59359.0,0.003]
[1723902795549,0.41001616,59360.0,59359.0,0.04007416]
[1723902796360,0.41001616,59360.0,59359.0,0.07714842]
[1723902798362,0.41001616,59360.0,59359.0,0.28930874]
[1723902798561,0.41001616,59360.0,59359.0,0.16098158]
[1723902798765,0.41001616,59360.0,59359.0,0.28930884]
[1723902798950,0.41001616,59360.0,59359.0,0.16098158]
[1723902799462,0.41001616,59360.0,59359.0,0.12390757]
[1723902799762,0.41001616,59360.0,59359.0,0.16098198]
[1723902799955,0.41001616,59360.0,59359.0,0.07714882]
[1723902803555,0.41001616,59360.0,59359.0,0.07715006]
[1723902804866,0.126334,59358.0,59357.0,0.08383316]
[1723902805164,0.47,59358.0,59356.0,0.06722673]
[1723902805364,0.47,59358.0,59352.0,0.00025277]
[1723902805365,0.063169,59356.0,59355.0,0.06722673]
[1723902805566,0.06317,59355.0,59354.0,0.06722673]
[1723902805759,0.69637,59355.0,59354.0,0.06722673]
[1723902806363,0.063171,59354.0,59353.0,0.06722673]
[1723902806579,0.613171,59354.0,59353.0,0.06722673]
[1723902806770,0.546371,59354.0,59353.0,0.03707974]
[1723902807067,0.546371,59354.0,59353.0,0.1209129]
[1723902807657,0.547371,59354.0,59353.0,0.04607691]
[1723902808658,0.548371,59354.0,59353.0,0.05307691]
[1723902810066,0.56558384,59354.0,59353.0,0.05307691]
[1723902810267,0.56558384,59354.0,59353.0,0.016]
[1723902810955,0.56558384,59354.0,59353.0,0.05307811]
[1723902811168,0.56558384,59354.0,59353.0,0.016]
[1723902811376,0.56558384,59354.0,59353.0,0.05307753]
[1723902811664,0.56558384,59354.0,59353.0,0.016]
[1723902815069,0.70558384,59354.0,59353.0,0.0831648]
[1723902815267,0.70558384,59354.0,59353.0,0.016]
[1723902816371,0.70558384,59354.0,59353.0,0.0831639]
[1723902816574,0.70558384,59354.0,59353.0,0.016]
[1723902817076,0.70558384,59354.0,59353.0,0.08316318]
[1723902818374,0.70558384,59354.0,59353.0,0.016]
[1723902818964,0.70558384,59354.0,59353.0,0.08315815]
[1723902820678,0.70558384,59354.0,59353.0,0.016]
[1723902821067,0.70558384,59354.0,59353.0,0.08315815]
[1723902821774,1.06638384,59354.0,59353.0,0.08315815]
[1723902824373,1.06638384,59354.0,59353.0,0.016]
[1723902825377,1.06638384,59354.0,59353.0,0.08315815]
[1723902825577,0.70558384,59354.0,59353.0,0.08315815]
[1723902825966,1.06638384,59354.0,59353.0,0.08315815]
[1723902827879,0.70558384,59354.0,59353.0,0.08315815]
[1723902828073,1.06638384,59354.0,59353.0,0.08315815]
[1723902829577,1.06638384,59354.0,59353.0,0.016]
[1723902830176,0.70558384,59354.0,59353.0,0.016]
[1723902830481,1.06638384,59354.0,59353.0,0.016]
[1723902831280,0.70558384,59354.0,59353.0,0.016]
[1723902831579,1.06638384,59354.0,59353.0,0.016]
[1723902832475,0.70558384,59354.0,59353.0,0.016]
[1723902836675,0.70558384,59354.0,59353.0,0.09983316]
[1723902836979,0.70558384,59354.0,59353.0,0.016]
[1723902837374,0.70558384,59354.0,59353.0,0.09983316]
[1723902837688,0.70558384,59354.0,59353.0,0.016]
[1723902838381,0.70558384,59354.0,59353.0,0.09983316]
[1723902838571,0.70558384,59354.0,59353.0,0.016]
[1723902840885,1.06638384,59354.0,59353.0,0.016]
[1723902841182,0.70558384,59354.0,59353.0,0.016]
[1723902841382,1.06638384,59354.0,59353.0,0.016]
[1723902843278,1.12955484,59354.0,59353.0,0.016]
[1723902845988,1.12955484,59354.0,59353.0,0.08333948]
[1723902846280,1.12955484,59354.0,59353.0,0.08334164]
[1723902846486,1.12955484,59354.0,59353.0,0.016]
[1723902846782,1.12955484,59354.0,59353.0,0.06650443]
[1723902848489,1.12955484,59354.0,59353.0,0.016]
[1723902848873,0.97318384,59354.0,59353.0,0.06650443]
[1723902849075,1.06638384,59354.0,59353.0,0.016]
[1723902851282,1.12955484,59354.0,59353.0,0.016]
[1723902851482,1.12955484,59354.0,59353.0,0.06648729]
[1723902851984,2.03499484,59354.0,59353.0,0.06648816]
[1723902854195,2.03499484,59354.0,59353.0,0.016]
[1723902855200,1.67419484,59354.0,59353.0,0.016]
[1723902855496,2.03499484,59354.0,59353.0,0.016]
[1723902857287,1.12955484,59354.0,59353.0,0.016]
[1723902858896,1.06638384,59354.0,59353.0,0.016]
[1723902859099,1.12955484,59354.0,59353.0,0.016]
[1723902860690,0.76875484,59354.0,59353.0,0.016]
[1723902860891,1.49035484,59354.0,59353.0,0.016]
[1723902864004,1.49035484,59354.0,59353.0,0.005358]
[1723902869200,0.76875484,59354.0,59353.0,0.005358]
[1723902869401,1.49035484,59354.0,59353.0,0.005358]
[1723902874815,0.76875484,59354.0,59353.0,0.005358]
[1723902875114,1.49035484,59354.0,59353.0,0.005358]
[1723902881721,0.76875484,59354.0,59353.0,0.005358]
[1723902881920,1.49035484,59354.0,59353.0,0.005358]
[1723902882313,1.42718384,59354.0,59353.0,0.005358]
[1723902882513,1.33398384,59354.0,59353.0,0.005358]
[1723902882816,1.42718384,59354.0,59353.0,0.05584616]
[1723902886409,0.70558384,59354.0,59353.0,0.05584616]
[1723902886625,1.06638384,59354.0,59353.0,0.05584616]
[1723902887119,0.70558384,59354.0,59353.0,0.05584616]
[1723902887424,1.06638384,59354.0,59353.0,0.05584616]
[1723902887820,0.70558384,59354.0,59353.0,0.05584616]
[1723902888021,1.06638384,59354.0,59353.0,0.05584616]
[1723902888523,1.06638384,59354.0,59353.0,0.005358]
[1723902888719,0.70558384,59354.0,59353.0,0.005358]
[1723902889024,1.06638384,59354.0,59353.0,0.005358]
[1723902889520,1.06638384,59354.0,59353.0,0.05584225]
[1723902891918,0.70558384,59354.0,59353.0,0.05584225]
[1723902892117,1.06638384,59354.0,59353.0,0.05584225]
[1723902894827,1.06638384,59354.0,59353.0,0.005358]
[1723902897527,1.06638384,59354.0,59353.0,0.05584225]
[1723902898727,1.06638384,59354.0,59353.0,0.005358]
[1723902899126,1.06638384,59354.0,59353.0,0.05584225]
[1723902903326,0.70558384,59354.0,59353.0,0.05584225]
[1723902903526,0.97318384,59354.0,59353.0,0.05584225]
[1723902903834,1.06638384,59354.0,59353.0,0.05584225]
[1723902904527,0.70558384,59354.0,59353.0,0.05584225]
[1723902904833,1.06638384,59354.0,59353.0,0.05584225]
[1723902905221,0.70558384,59354.0,59353.0,0.05584225]
[1723902905426,1.06638384,59354.0,59353.0,0.05584225]
[1723902906635,1.06638384,59354.0,59353.0,0.005358]
[1723902907434,0.70558384,59354.0,59353.0,0.005358]
[1723902907735,1.06638384,59354.0,59353.0,0.005358]
[1723902908531,0.70558384,59354.0,59353.0,0.005358]
[1723902908732,1.06638384,59354.0,59353.0,0.005358]
[1723902912234,1.12955484,59354.0,59353.0,0.005358]
[1723902913535,0.126344,59353.0,59352.0,0.00025277]
[1723902913733,0.543172,59353.0,59349.0,0.05053336]
[1723902914037,0.543172,59353.0,59342.0,0.06734164]
[1723902914038,0.063177,59348.0,59342.0,0.06734164]
[1723902914239,0.454,59343.0,59342.0,0.06734164]
[1723902914434,0.954,59343.0,59342.0,0.03708871]
[1723902915327,0.063185,59341.0,59340.0,0.06734164]
[1723902915539,0.529185,59341.0,59340.0,0.06734164]
[1723902915842,0.529185,59341.0,59340.0,0.1044303]
[1723902915843,0.528185,59341.0,59340.0,0.1044303]
[1723902916546,0.889985,59341.0,59340.0,0.1054303]
[1723902916733,0.889985,59341.0,59340.0,0.03808866]
[1723902917341,0.889985,59341.0,59340.0,0.001]
[1723902917737,0.890985,59341.0,59340.0,0.001]
[1723902920339,0.95417,59341.0,59340.0,0.001]
[1723902920942,0.126376,59338.0,59337.0,0.00025277]
[1723902921244,0.063201,59326.0,59325.0,0.06734164]
[1723902921439,0.857201,59326.0,59325.0,0.03709835]
[1723902921641,0.063207,59321.0,59319.0,0.06726211]
[1723902921843,0.063207,59321.0,59318.0,0.06726211]
[1723902921844,0.0932,59320.0,59318.0,0.06726211]
[1723902922142,0.0932,59319.0,59318.0,0.06726211]
[1723902922341,0.0932,59319.0,59315.0,0.24584516]
[1723902922342,0.4732,59319.0,59317.0,0.06726211]
[1723902922553,0.05104126,59318.0,59317.0,0.06726211]
[1723902922849,0.44104126,59318.0,59317.0,0.06726211]
[1723902923446,0.44104126,59318.0,59315.0,0.22927411]
[1723902923837,0.063212,59316.0,59315.0,0.16606211]
[1723902924145,0.393212,59316.0,59315.0,0.0988]
[1723902925543,0.394212,59316.0,59315.0,0.0988]
[1723902926747,0.395212,59316.0,59315.0,0.0988]
[1723902929855,0.488412,59316.0,59315.0,0.0988]
[1723902944461,0.488412,59316.0,59315.0,0.06726211]
[1723902946356,0.488412,59316.0,59314.0,0.063214]
[1723902947560,0.487412,59316.0,59314.0,0.063214]
[1723902947860,0.488412,59316.0,59314.0,0.063214]
[1723902948460,0.488412,59316.0,59314.0,0.14704716]
[1723902949169,0.063213,59315.0,59314.0,0.14704716]
[1723902949456,0.442113,59315.0,59314.0,0.19163503]
[1723902949851,0.442113,59315.0,59314.0,0.12842103]
[1723902950269,0.443113,59315.0,59314.0,0.12842103]
[1723902950452,0.506326,59315.0,59314.0,0.12842103]
[1723902950649,0.126428,59314.0,59313.0,0.00025277]
[1723902950960,1.037228,59314.0,59313.0,0.00025277]
[1723902952265,1.038228,59314.0,59313.0,0.00025277]
[1723902952951,1.944028,59314.0,59313.0,0.00025277]
[1723902953351,1.544028,59314.0,59313.0,0.00025277]
[1723902955858,0.063221,59307.0,59306.0,0.0674325]
[1723902956054,0.8908,59307.0,59305.0,0.00018453]
[1723902957262,0.063222,59306.0,59305.0,0.00018453]
[1723902957561,0.603222,59306.0,59305.0,0.00018453]
[1723902957761,0.696422,59306.0,59305.0,0.00018453]
[1723902958357,0.697422,59306.0,59305.0,0.00018453]
[1723902959763,0.698422,59306.0,59305.0,0.00018453]
[1723902960463,0.71363561,59306.0,59305.0,0.00018453]
[1723902964562,1.07443561,59306.0,59305.0,0.00018453]
[1723902974770,0.98123561,59306.0,59305.0,0.00018453]
[1723902974967,1.07443561,59306.0,59305.0,0.00018453]
[1723902977885,0.98123561,59306.0,59305.0,0.00018453]
[1723902978179,1.07443561,59306.0,59305.0,0.00018453]
[1723902980377,1.07443561,59306.0,59305.0,0.06761703]
[1723902981182,1.07443561,59306.0,59305.0,0.00018453]
[1723902981681,1.07443561,59306.0,59305.0,0.06761703]
[1723902984083,1.07443561,59306.0,59305.0,0.00018453]
[1723902986477,1.07443561,59306.0,59305.0,0.06761703]
[1723902986675,1.07443561,59306.0,59305.0,0.00018453]
[1723902987683,1.07443561,59306.0,59305.0,0.06761703]
[1723902987883,1.07443561,59306.0,59305.0,0.00018453]
[1723902988477,1.07443561,59306.0,59305.0,0.06761703]
[1723902988685,1.07443561,59306.0,59305.0,0.00018453]
[1723902992280,1.07443561,59306.0,59305.0,0.06761703]
[1723902993389,1.07443561,59306.0,59305.0,0.00018453]
[1723902993585,1.07443561,59306.0,59305.0,0.0676157]
[1723902993977,1.07443561,59306.0,59305.0,0.00018453]
[1723902994486,1.07443561,59306.0,59305.0,0.06761642]
[1723902994687,1.07443561,59306.0,59305.0,0.00018453]
[1723902994896,1.07443561,59306.0,59305.0,0.0676168]
[1723902995187,1.07443561,59306.0,59305.0,0.00018453]
[1723902995670,1.07443561,59306.0,59305.0,0.06761678]
[1723902995870,1.07443561,59306.0,59305.0,0.06761753]
[1723902996081,1.07443561,59306.0,59305.0,0.00018453]
[1723902999288,0.98123561,59306.0,59305.0,0.03729658]
[1723902999493,0.98123561,59306.0,59305.0,0.03729605]
[1723902999494,1.07443561,59306.0,59305.0,0.03729605]
[1723903000089,0.91801361,59306.0,59305.0,0.13763019]
[1723903000294,1.01121361,59306.0,59305.0,0.35036343]
[1723903000489,1.01121361,59306.0,59305.0,0.26607895]
[1723903003192,1.01121361,59306.0,59305.0,0.26607596]
[1723903003395,1.01121361,59306.0,59305.0,0.35033157]
[1723903004282,1.01121361,59306.0,59305.0,0.26607596]
[1723903004283,0.65041361,59306.0,59305.0,0.26607596]
[1723903004484,0.50041361,59306.0,59305.0,0.26607596]
[1723903004685,0.45824779,59306.0,59305.0,0.26607596]
[1723903004879,0.45824779,59306.0,59305.0,1.33714319]
[1723903005085,0.45824779,59306.0,59305.0,1.27305236]
[1723903005293,0.45824779,59306.0,59305.0,0.87305236]
[1723903006494,0.45824779,59306.0,59305.0,0.77191596]
[1723903006891,0.34983418,59306.0,59305.0,0.73480444]
[1723903007090,0.002,59306.0,59305.0,1.27304585]
[1723903007395,0.002,59306.0,59305.0,0.77190945]
[1723903007693,0.002,59306.0,59305.0,0.95471113]
[1723903007893,0.002,59306.0,59305.0,1.35471113]
[1723903008085,0.002,59306.0,59305.0,1.27302923]
[1723903008288,0.002,59306.0,59305.0,1.17189283]
[1723903009995,0.002,59306.0,59305.0,1.53269283]
[1723903010198,0.002,59306.0,59305.0,1.13269283]
[1723903012198,0.002,59306.0,59305.0,1.53269283]
[1723903013098,0.012,59306.0,59305.0,1.53269283]
[1723903013493,0.012,59306.0,59305.0,1.13269283]
[1723903013889,0.012,59306.0,59305.0,1.53269283]
[1723903014784,0.0932,59308.0,59307.0,0.063221]
[1723903014998,0.0932,59308.0,59307.0,0.34996392]
[1723903016099,0.0942,59308.0,59307.0,0.34996392]
[1723903016684,0.0952,59308.0,59307.0,0.34996392]
[1723903016885,0.0952,59308.0,59307.0,0.34996439]
[1723903017085,0.1152,59308.0,59307.0,0.34996439]
[1723903018791,0.1152,59308.0,59307.0,0.22153477]
[1723903018999,0.17842,59308.0,59307.0,0.22153505]
[1723903019198,0.17842,59308.0,59307.0,0.1374288]
[1723903019594,0.17842,59308.0,59307.0,0.0742078]
[1723903020797,0.17842,59308.0,59307.0,0.15831405]
[1723903021501,0.17842,59308.0,59307.0,0.28674476]
[1723903021898,0.17842,59308.0,59307.0,0.2867453]
[1723903022398,0.17842,59308.0,59307.0,0.3499663]
[1723903023301,0.17842,59308.0,59307.0,0.26586005]
[1723903026006,0.17842,59308.0,59307.0,0.26585996]
[1723903028910,0.17842,59308.0,59307.0,0.36699636]
[1723903030106,0.17842,59308.0,59307.0,0.32989214]
[1723903030313,0.17842,59308.0,59307.0,0.26585977]
[1723903031107,0.17842,59308.0,59307.0,0.32984921]
[1723903031507,0.17842,59308.0,59307.0,0.2927445]
[1723903031717,0.17842,59308.0,59307.0,0.3298492]
[1723903031905,0.17842,59308.0,59307.0,0.22875641]
[1723903032307,0.17842,59308.0,59307.0,0.22875648]
[1723903033404,0.17842,59308.0,59307.0,0.19165171]
[1723903034010,0.17842,59308.0,59307.0,0.19165548]
[1723903034203,0.17842,59308.0,59307.0,0.22876062]
[1723903035714,0.17842,59308.0,59307.0,0.42219244]
[1723903036210,0.17842,59308.0,59307.0,0.2658659]
[1723903036815,0.08522,59308.0,59307.0,0.28345949]
[1723903037607,0.08522,59308.0,59307.0,0.28345839]
[1723903038215,0.08522,59308.0,59307.0,0.28345711]
[1723903039406,0.08522,59308.0,59307.0,0.22023611]
[1723903039605,0.08522,59308.0,59307.0,0.12843448]
[1723903039806,0.08522,59308.0,59307.0,0.20264576]
[1723903042113,0.08522,59308.0,59307.0,0.22023985]
[1723903046218,0.08522,59308.0,59307.0,0.18313421]
[1723903046417,0.08522,59308.0,59307.0,0.20264632]
[1723903047814,0.08522,59308.0,59307.0,0.20264977]
[1723903048811,0.23522,59308.0,59307.0,0.20264977]
[1723903049113,0.23522,59308.0,59307.0,0.20264989]
[1723903050223,0.23522,59308.0,59307.0,0.20265025]
[1723903050724,0.23522,59308.0,59307.0,0.20265015]
[1723903051917,0.23522,59308.0,59307.0,0.22024416]
[1723903052107,0.32842,59308.0,59307.0,0.22024416]
[1723903052521,0.32842,59308.0,59307.0,0.22024018]
[1723903054215,0.32842,59308.0,59307.0,0.16554012]
[1723903054421,0.32842,59308.0,59307.0,0.22023812]
[1723903058325,0.32842,59308.0,59307.0,0.22023762]
[1723903059629,0.32842,59308.0,59307.0,0.22023917]
[1723903059924,0.32842,59308.0,59307.0,0.22024023]
[1723903060123,0.39164,59308.0,59307.0,0.2026466]
[1723903060428,0.48624,59308.0,59307.0,0.07421098]
[1723903061824,0.48624,59308.0,59307.0,0.03710496]
[1723903062028,0.48624,59308.0,59307.0,0.06742713]
[1723903062333,0.063222,59306.0,59305.0,0.00018453]
[1723903062521,0.623222,59306.0,59305.0,0.00018453]
[1723903062723,0.623222,59306.0,59305.0,0.07440675]
[1723903063122,0.716422,59306.0,59305.0,0.07440675]
[1723903063834,0.717422,59306.0,59305.0,0.07440675]
[1723903064225,0.718422,59306.0,59305.0,0.07440675]
[1723903064625,0.718422,59306.0,59305.0,0.15869263]
[1723903064828,0.718422,59306.0,59305.0,0.28713607]
[1723903065025,0.718422,59306.0,59305.0,0.25002159]
[1723903065227,0.718422,59306.0,59305.0,0.15868589]
[1723903066121,0.718422,59306.0,59305.0,0.00018453]
[1723903066338,0.718422,59306.0,59305.0,0.07440059]
[1723903066537,0.718422,59306.0,59305.0,0.15868647]
[1723903066740,0.718422,59306.0,59305.0,0.07440059]
[1723903066939,0.718422,59306.0,59305.0,0.15868647]
[1723903067143,0.718422,59306.0,59305.0,0.15868603]
[1723903067339,0.718422,59306.0,59305.0,0.28712884]
[1723903067736,0.718422,59306.0,59305.0,0.28712688]
[1723903068245,0.718422,59306.0,59305.0,0.07440015]
[1723903069648,0.718422,59306.0,59305.0,0.28713079]
[1723903070539,0.718422,59306.0,59305.0,0.28713009]
[1723903071349,0.718422,59306.0,59305.0,0.20284421]
[1723903071548,0.718422,59306.0,59305.0,0.28707787]
[1723903071748,0.718422,59306.0,59305.0,0.2870782]
[1723903071946,0.718422,59306.0,59305.0,0.20284421]
[1723903072152,0.562,59306.0,59305.0,0.26606721]
[1723903072351,0.51983387,59306.0,59305.0,0.26606721]
[1723903074553,0.51983387,59306.0,59305.0,0.33013067]
[1723903074856,0.51983387,59306.0,59305.0,0.36723507]
[1723903075057,0.392,59306.0,59305.0,0.36723507]
[1723903075355,0.392,59306.0,59305.0,0.28365813]
[1723903075855,0.392,59306.0,59305.0,0.28364968]
[1723903077162,0.4852,59306.0,59305.0,0.28364968]
[1723903077855,0.0952,59306.0,59305.0,0.28364968]
[1723903079859,0.00025277,59312.0,59305.0,0.72626668]
[1723903080163,0.3608,59324.0,59320.0,0.063207]
[1723903080164,0.063204,59323.0,59320.0,0.063207]
[1723903080363,0.25033793,59322.0,59321.0,0.13741786]
[1723903080557,0.01421793,59322.0,59321.0,0.26582643]
[1723903080757,0.1407,59324.0,59323.0,0.063204]
[1723903080953,0.1407,59324.0,59323.0,0.26582443]
[1723903081150,0.15532987,59324.0,59323.0,0.26582443]
[1723903081351,0.15532987,59324.0,59323.0,0.26581335]
[1723903081754,0.15532987,59324.0,59323.0,0.13740478]
[1723903081953,0.16532987,59324.0,59323.0,0.13740478]
[1723903082155,0.22853287,59324.0,59323.0,0.13740478]
[1723903082361,0.22853287,59324.0,59323.0,0.063204]
[1723903082567,0.22853287,59324.0,59323.0,0.10029886]
[1723903082867,0.23653287,59324.0,59323.0,0.10029886]
[1723903083365,0.23653287,59324.0,59323.0,0.063204]
[1723903083568,0.24253287,59324.0,59323.0,0.063204]
[1723903084358,0.16932987,59324.0,59323.0,0.063204]
[1723903084760,0.07612987,59324.0,59323.0,0.10029763]
[1723903085371,0.07612987,59324.0,59323.0,0.063204]
[1723903085765,0.07612987,59324.0,59323.0,0.156404]
[1723903085971,0.02862987,59324.0,59323.0,0.156404]
[1723903086671,0.02862987,59324.0,59323.0,0.063204]
[1723903086863,0.03862987,59324.0,59323.0,0.063204]
[1723903087059,0.07402987,59324.0,59323.0,0.05037806]
[1723903087364,0.063204,59323.0,59322.0,0.05037535]
[1723903087557,0.316404,59323.0,59322.0,0.05037535]
[1723903088470,0.316404,59323.0,59321.0,0.05037535]
[1723903088666,0.0932,59322.0,59321.0,0.05037535]
[1723903088861,0.0932,59322.0,59320.0,0.063207]
[1723903089062,0.1432,59322.0,59320.0,0.063207]
[1723903089464,0.0932,59322.0,59321.0,0.063206]
[1723903089871,0.1132,59322.0,59321.0,0.11355868]
[1723903090079,0.1132,59322.0,59321.0,0.063206]
[1723903090273,0.1132,59322.0,59321.0,0.11355584]
[1723903090475,0.1132,59322.0,59321.0,0.11355307]
[1723903090882,0.1182,59322.0,59321.0,0.11355307]
[1723903091183,0.1212,59322.0,59321.0,0.11355307]
[1723903092269,0.028,59322.0,59321.0,0.156406]
[1723903093077,0.008,59322.0,59321.0,0.156406]
[1723903093274,0.008,59322.0,59321.0,0.22352517]
[1723903093780,0.008,59322.0,59321.0,0.156406]
[1723903094977,0.008,59322.0,59321.0,0.53141148]
[1723903095565,0.008,59322.0,59321.0,0.517206]
[1723903096272,0.008,59322.0,59321.0,0.58432517]
[1723903096772,0.008,59322.0,59321.0,0.517206]
[1723903097277,0.038,59322.0,59321.0,0.49113085]
[1723903099878,0.038,59322.0,59321.0,0.4611]
[1723903100382,0.038,59322.0,59321.0,0.517206]
[1723903100582,0.038,59322.0,59321.0,0.55430013]
[1723903101575,0.038,59322.0,59321.0,0.517206]
[1723903101773,0.038,59322.0,59321.0,0.55430013]
[1723903102485,0.008,59322.0,59321.0,0.55430013]
[1723903105581,0.028,59322.0,59321.0,0.46110004]
[1723903107275,0.091205,59322.0,59321.0,0.46110004]
[1723903109289,0.091205,59322.0,59321.0,0.5895035]
[1723903110890,0.091205,59322.0,59321.0,0.58950313]
[1723903111188,0.091205,59322.0,59321.0,0.22870313]
[1723903115393,0.028,59322.0,59321.0,0.22870039]
[1723903116284,0.008,59322.0,59321.0,0.22870039]
[1723903116984,0.008,59322.0,59321.0,0.19160635]
[1723903117386,0.06002987,59324.0,59323.0,0.063205]
[1723903117581,0.09002987,59324.0,59323.0,0.28480535]
[1723903118287,0.09002987,59324.0,59323.0,0.38590255]
[1723903118687,0.09802987,59324.0,59323.0,0.38590255]
[1723903119188,0.10302987,59324.0,59323.0,0.38590255]
[1723903119389,0.10302987,59324.0,59323.0,0.19160535]
[1723903120093,0.10302987,59324.0,59323.0,0.19160322]
[1723903121985,0.10302987,59324.0,59323.0,0.19160266]
[1723903122292,0.10302987,59324.0,59323.0,0.26579182]
[1723903124601,0.10302987,59324.0,59323.0,0.26579266]
[1723903125505,0.10302987,59324.0,59323.0,0.36688986]
[1723903125689,0.10302987,59324.0,59323.0,0.3668899]
[1723903127385,0.0884,59324.0,59323.0,0.3668899]
[1723903127587,0.0584,59324.0,59323.0,0.3668899]
[1723903127897,0.0584,59324.0,59323.0,0.4600899]
[1723903128098,0.0584,59324.0,59323.0,0.52416193]
[1723903128397,0.0584,59324.0,59323.0,0.3589927]
[1723903128590,0.0584,59324.0,59323.0,0.42306427]
[1723903129102,0.013,59324.0,59323.0,0.42306427]
[1723903129284,0.013,59324.0,59323.0,0.59693302]
[1723903129600,0.00025277,59329.0,59327.0,0.0632]
[1723903129801,0.00025277,59329.0,59328.0,0.56338]
[1723903130098,1e-08,59329.0,59328.0,0.70823458]
[1723903130510,1e-08,59329.0,59328.0,0.80928678]
[1723903130795,0.01000001,59329.0,59328.0,0.70823458]
[1723903130994,0.0487,59335.0,59334.0,0.063193]
[1723903131193,0.0487,59335.0,59334.0,0.83840609]
[1723903131400,0.0487,59335.0,59334.0,0.73736312]
[1723903131800,0.062846,59335.0,59334.0,0.73736312]
[1723903131999,0.23604,59341.0,59340.0,0.063187]
[1723903132299,0.0473,59343.0,59340.0,0.56333745]
[1723903132503,0.0473,59343.0,59342.0,0.24052104]
[1723903132692,0.0473,59343.0,59342.0,0.35892157]
[1723903133198,0.0473,59343.0,59342.0,0.24815417]
[1723903133500,0.0473,59343.0,59342.0,0.156385]
[1723903133800,0.0473,59343.0,59342.0,0.2481394]
[1723903134203,0.0523,59343.0,59342.0,0.2315511]
[1723903134393,0.0523,59343.0,59342.0,0.24913903]
[1723903134987,0.0653,59343.0,59342.0,0.25013903]
[1723903135194,0.0653,59343.0,59342.0,0.25013895]
[1723903135394,0.0653,59343.0,59342.0,0.1393511]
[1723903137606,0.0653,59343.0,59342.0,0.10226685]
[1723903137807,0.0653,59343.0,59342.0,0.2325487]
[1723903138307,0.0653,59343.0,59342.0,0.19546685]
[1723903139006,0.0653,59343.0,59342.0,0.23254818]
[1723903139301,0.0653,59343.0,59342.0,0.19546685]
[1723903140197,0.018,59343.0,59342.0,0.23254812]
[1723903141492,1e-08,59346.0,59345.0,0.063181]
[1723903141697,1e-08,59346.0,59345.0,0.19345893]
[1723903141904,1e-08,59346.0,59345.0,0.23053758]